Cogmind - Beta 11 X8 @@@ ROGUE MODE // 2021.11.21 @ 00:21:38 Player: Runia Result: Smashed by cave-in Performance ------------- Evolutions (0) 0 Regions Visited (4) 800 Robots Destroyed (34) 170 Value Destroyed (968) 968 Prototype IDs (7) 140 Alien Tech Used (0) 0 Bonus (-8) -8 TOTAL SCORE: 2070 Bonus ------- Friendly Fire -8 Cogmind --------- Core Integrity 0/250 Matter 415/450 Energy 100/100 System Corruption 7% Temperature Cool (0) Movement Treading (160) Location -9/Mines Parts ------- > --- POWER (1) -------- (None) > --- PROPULSION (2) --- Light Treads Light Treads > --- UTILITY (2) ------ Large Storage Unit Large Matter Pod > --- WEAPON (2) ------- Small Laser Small Laser > --- INVENTORY (15) --- Light Treads Light Treads Wheel Wheel Improved Heat Sink Improved Terrain Scanner Thief Drone Bay (3/3) Peak State ------------ > --- POWER ------------ Ion Engine > --- PROPULSION ------- Light Treads Light Treads > --- UTILITY ---------- Large Storage Unit Thief Drone Bay > --- WEAPON ----------- Particle Gun Light Assault Rifle > --- INVENTORY -------- Ion Engine Light Treads Light Treads Light Treads Light Treads Wheel Wheel Heat Sink Large Matter Pod Terrain Scanner Improved Terrain Scanner Small Laser Small Laser Small Laser Grenade Launcher [Rating: 15] Favorites ----------- Power Ion Engine Engine Ion Engine Propulsion Light Treads Treads Light Treads Leg Aluminum Leg Utility Large Storage Unit Device Heat Sink Storage Large Storage Unit Weapon Particle Gun Energy Gun Particle Gun Ballistic Gun Light Assault Rifle Launcher Grenade Launcher Build | -11 -10 -10 -10 -9 ------- Run | Scr Mat Min Exi Min Slots Evolved . | . . . . . Power . | . . . . . Propulsion . | . . . . . Utility . | . . . . . Weapon . | . . . . . Parts Attached 39 | 2 25 4 . 8 Power 5 | . 3 . . 2 Engine 5 | . 3 . . 2 Core . | . . . . . Reactor . | . . . . . Propulsion 8 | 2 4 . . 2 Treads 8 | 2 4 . . 2 Leg . | . . . . . Wheel . | . . . . . Hover . | . . . . . Flight . | . . . . . Utility 8 | . 4 4 . . Device 6 | . 3 3 . . Storage 2 | . 1 1 . . Processor . | . . . . . Hackware . | . . . . . Protection . | . . . . . Artifact . | . . . . . Weapon 18 | . 14 . . 4 Energy Gun 11 | . 8 . . 3 Energy Cannon . | . . . . . Ballistic Gun 1 | . 1 . . . Ballistic Cannon . | . . . . . Launcher 6 | . 5 . . 1 Special Weapon . | . . . . . Impact Weapon . | . . . . . Slashing Weapon . | . . . . . Piercing Weapon . | . . . . . Special Melee Weapon . | . . . . . Unidentified Prototypes 1 | . . 1 . . Parts Lost 5 | . 1 . . 4 Power 1 | . . . . 1 Propulsion 1 | . . . . 1 Utility . | . . . . . Weapon 3 | . 1 . . 2 Highest Loss Streak 3 | . 1 . . 3 Average Slot Usage (%) 98 | . 97 100 100 93 Engine 14 | . 14 14 14 14 Treads 27 | . 28 28 28 27 Device 9 | . 11 12 . . Storage 17 | . 14 15 28 28 Energy Gun 18 | . 21 14 14 20 Ballistic Gun 7 | . 3 14 14 1 Launcher 1 | . 3 . . . Naked Turns . | . . . . . Heaviest Build 36 | 14 30 33 32 36 Greatest Support 40 | 40 40 40 40 40 Greatest Overweight (x) . | . . . . . Average Overweight (x) . | . . . . . Largest Inventory Capacity 15 | 8 15 15 15 15 Average Capacity 12 | 8 9 15 15 15 Most Carried 15 | 6 15 15 14 14 Average Carried 10 | 4 7 14 14 10 Final Capacity 15 | 8 15 15 15 15 Final Carried 15 | 2 15 14 14 7 Class Distribution -------------------- 100% | Mutant Dominant Class ---------------- Mutant | -10/Materials Mutant | -10/Mines Mutant | -10/Exiles Mutant | -9/Mines Resources | -11 -10 -10 -10 -9 ----------- Run | Scr Mat Min Exi Min Matter Collected 788 | 200 502 16 . 70 Remotely . | . . . . . Salvage Created 1048 | . 757 82 . 209 Parts 66 | . 50 5 . 11 Haulers Intercepted 2 | . 2 . . . Recyclers Shooed 1 | . 1 . . . Parts Field Recycled . | . . . . . Retrieved Matter . | . . . . . Parts Self-Destructed . | . . . . . Prevented . | . . . . . Kills | -11 -10 -10 -10 -9 ------- Run | Scr Mat Min Exi Min Combat Hostiles Destroyed 25 | . 17 2 . 6 Guns 17 | . 12 2 . 3 AOE 7 | . 4 . . 3 Classes Destroyed 9 | . 8 . . 1 Builder 1 | . 1 . . . Tunneler 1 | . 1 . . . Hauler 2 | . 2 . . . Recycler 1 | . 1 . . . Operator 1 | . 1 . . . Watcher 3 | . 3 . . . Swarmer 3 | . 3 . . . Grunt 21 | . 14 2 . 5 Brawler 1 | . . . . 1 Best Kill Streak 6 | . 4 2 . 6 Combat Bots Only 6 | . 3 2 . 6 Max Kills in Single Turn 3 | . 3 1 . 3 Gunslinging 1 | . . . . 1 Exploded 3 | . 3 . . 3 Melee . | . . . . . Uniques/NPCs Destroyed . | . . . . . Combat | -11 -10 -10 -10 -9 -------- Run | Scr Mat Min Exi Min Damage Taken 1334 | . 638 79 . 617 Core 256 | . 95 16 . 145 Absorbed by Shields . | . . . . . Core Remaining (%) 100 | 100 . . . . Volleys Fired 93 | . 70 6 . 17 Largest 2 | . 2 2 . 2 Hottest 115 | . 115 85 . 105 Shots Fired 167 | . 130 12 . 25 Gun 157 | . 122 12 . 23 Cannon . | . . . . . Launcher 10 | . 8 . . 2 Special . | . . . . . Kinetic 17 | . 7 6 . 4 Thermal 138 | . 113 6 . 19 Explosive 10 | . 8 . . 2 Electromagnetic 2 | . 2 . . . Robot Hit Streak 15 | . 15 6 . 15 Robot Miss Streak 4 | . 4 1 . 3 Penetration Max . | . . . . . Secondary Targets 3 | . 1 . . 2 Max Gunslinging Chain 1 | . 1 . . 1 Shots Hit Robots 106 | . 82 9 . 15 Core Hits 57 | . 40 5 . 12 Critical Kills . | . . . . . Critical Parts Destroyed . | . . . . . Critical Strikes 3 | . 3 . . . Burn 3 | . 3 . . . Melee Attacks . | . . . . . Impact . | . . . . . Slashing . | . . . . . Piercing . | . . . . . Sneak Attacks . | . . . . . Combat Hostiles . | . . . . . Follow-up Attacks . | . . . . . Damage Inflicted 1958 | . 1390 111 . 457 Guns 1288 | . 1004 111 . 173 Cannons . | . . . . . Explosions 633 | . 386 . . 247 Melee . | . . . . . Ramming 37 | . . . . 37 Kinetic 110 | . 55 32 . 23 Thermal 1178 | . 949 79 . 150 Explosive 633 | . 386 . . 247 Electromagnetic . | . . . . . Impact . | . . . . . Slashing . | . . . . . Piercing . | . . . . . Highest Corruption 2 | . 1 1 1 2 Average Corruption 1 | . 1 1 1 1 Corruption Purged . | . . . . . Effects 5 | . 2 1 1 1 Message Errors 3 | . 1 1 1 . Energy Discharges 1 | . . . . 1 Weapon Failures 1 | . 1 . . . Overload Shots . | . . . . . Overflow Damage 21 | . 5 . . 16 Projectiles . | . . . . . Explosions 21 | . 5 . . 16 Melee . | . . . . . Knockbacks . | . . . . . Impact . | . . . . . Kinetic . | . . . . . Secondary . | . . . . . Self-Inflicted Damage 116 | . 34 . . 82 Shots 4 | . 2 . . 2 Rammed 3 | . . . . 3 Targets Rammed 3 | . . . . 3 Kicked . | . . . . . Crushed . | . . . . . Highest Temperature 258 | . 258 69 . 233 Average Temperature 84 | . 88 42 . 86 Received Heat Transfer 570 | . 327 45 . 198 Effects 2 | . . . . 2 Interference 2 | . . . . 2 Siege Activations . | . . . . . Robots Corrupted . | . . . . . Combat Hostiles . | . . . . . Parts Fried . | . . . . . Impact Corruptions . | . . . . . Robots Melted 1 | . 1 . . . Combat Hostiles 1 | . 1 . . . Parts Melted 5 | . 4 1 . . Heat Transferred 3169 | . 2625 185 . 359 Parts Sabotaged . | . . . . . Parts Stolen . | . . . . . Parts Stripped . | . . . . . Power Chain Reactions . | . . . . . Missiles Intercepted . | . . . . . Alert | -11 -10 -10 -10 -9 ------- Run | Scr Mat Min Exi Min Peak Influence 266 | . 266 65 . 120 Initial 46 | . . 46 . . Average 110 | . 151 46 . 102 Maximum Alert Level 1 | . 1 . . . Low Security (%) 85 | 100 74 100 . 100 Level 1 14 | . 25 . . . Level 2 . | . . . . . Level 3 . | . . . . . Level 4 . | . . . . . Level 5 . | . . . . . High Security . | . . . . . Max Security . | . . . . . Squads Dispatched 4 | . 4 . . . Investigation 4 | . 4 . . . Extermination . | . . . . . Reinforcement . | . . . . . Assault . | . . . . . Garrison . | . . . . . Intercept . | . . . . . Construction Impeded . | . . . . . Haulers Reinforced . | . . . . . Active Scanning Responses . | . . . . . Cargo Convoy Interrupts . | . . . . . Stealth | -11 -10 -10 -10 -9 --------- Run | Scr Mat Min Exi Min Distress Signals . | . . . . . Communications Jammed . | . . . . . Distress Signals . | . . . . . Times Spotted 33 | . 25 2 . 6 Peak Tracking Total 6 | . 4 2 . 6 Tactical Retreats 1 | . 1 . . . Traps | -11 -10 -10 -10 -9 ------- Run | Scr Mat Min Exi Min Traps Triggered 1 | . 1 . . . Indirectly . | . . . . . Trap Hack Attempts . | . . . . . Triggered . | . . . . . Disarmed . | . . . . . Reprogrammed . | . . . . . Reused . | . . . . . Traps Extracted . | . . . . . Installed . | . . . . . Triggered . | . . . . . Machines | -11 -10 -10 -10 -9 ---------- Run | Scr Mat Min Exi Min Machines Disabled 5 | . 4 1 . . Max in Single Turn 3 | . 3 1 . . Machines Sabotaged . | . . . . . Garrisons Compromised . | . . . . . Overloaded Fab Kills . | . . . . . Hacking | -11 -10 -10 -10 -9 --------- Run | Scr Mat Min Exi Min Machines Accessed 13 | . 11 1 1 . Terminals 8 | . 8 . . . Fabricators . | . . . . . Repair Stations 1 | . 1 . . . Recycling Units 2 | . 2 . . . Scanalyzers . | . . . . . Garrison Access . | . . . . . Total Hacks 41 | . 39 1 1 . Successful 17 | . 15 1 1 . Failed 24 | . 24 . . . Catastrophic 1 | . 1 . . . Database Lockouts . | . . . . . Manual 17 | . 17 . . . Terminals 32 | . 32 . . . Fabricators . | . . . . . Repair Stations 5 | . 5 . . . Recycling Units 2 | . 2 . . . Scanalyzers . | . . . . . Garrison Access . | . . . . . Terminal Hacks 11 | . 9 1 1 . Record 1 | . . . 1 . Part Schematic 1 | . 1 . . . Prototype ID Bank 3 | . 3 . . . Open Door 1 | . . 1 . . Emergency Access Points 1 | . 1 . . . Terminal Index 1 | . 1 . . . Unreport Threat 1 | . 1 . . . Locate Traps 1 | . 1 . . . Zone Layout 1 | . 1 . . . Fabricator Hacks . | . . . . . Repair Station Hacks 3 | . 3 . . . Scan Component 2 | . 2 . . . Repair 1 | . 1 . . . Recycling Unit Hacks . | . . . . . Scanalyzer . | . . . . . Garrison Access Hacks . | . . . . . Unauthorized Hacks 3 | . 3 . . . Terminals 1 | . 1 . . . Operators 1 | . 1 . . . Fabricators . | . . . . . Repair Stations . | . . . . . Recycling Units 2 | . 2 . . . Tunnel 2 | . 2 . . . Scanalyzers . | . . . . . Garrison Access . | . . . . . Data Cores Recovered 1 | . 1 . . . Used . | . . . . . Hacking Detections 9 | . 9 . . . Full Trace Events 1 | . 1 . . . Feedback Events 1 | . 1 . . . Corruption 1 | . 1 . . . Feedback Blocked . | . . . . . Robot Schematics Acquired . | . . . . . Robots Built . | . . . . . Authchips . | . . . . . Time . | . . . . . Total Robot Build Rating . | . . . . . Part Schematics Acquired 1 | . 1 . . . Parts Built . | . . . . . Authchips . | . . . . . Time . | . . . . . Total Part Build Rating . | . . . . . Parts Repaired 1 | . 1 . . . Time 36 | . 36 . . . Parts Recycled . | . . . . . Recycled Matter . | . . . . . Retrieved Matter . | . . . . . Retrieved Components . | . . . . . Parts Scanalyzed . | . . . . . Part Schematics Acquired . | . . . . . Parts Damaged . | . . . . . Bothacking | -11 -10 -10 -10 -9 ------------ Run | Scr Mat Min Exi Min Used RIF Installer . | . . . . . Robots Hacked . | . . . . . Non-combat . | . . . . . Combat . | . . . . . Robot Hacks Applied . | . . . . . Relay Couplers Released . | . . . . . Fabnet Peak Effective % . | . . . . . Robots Rewired . | . . . . . Allies Hacked . | . . . . . Hacks Repelled . | . . . . . Allies | -11 -10 -10 -10 -9 -------- Run | Scr Mat Min Exi Min Total Allies . | . . . . . Largest Group . | . . . . . Highest-Rated Group . | . . . . . Highest-Rated Ally . | . . . . . Total Orders . | . . . . . Ally Attacks . | . . . . . Total Damage . | . . . . . Kills . | . . . . . Allies Corrupted . | . . . . . Allies Melted . | . . . . . Intel | -11 -10 -10 -10 -9 ------- Run | Scr Mat Min Exi Min Robot Analysis Total . | . . . . . Derelict Logs Recovered 2 | . . 1 . 1 Drone Launches . | . . . . . Drone Recoveries . | . . . . . Exploration | -11 -10 -10 -10 -9 ------------- Run | Scr Mat Min Exi Min Turns Passed 2832 | 4 1337 792 412 287 Spaces Moved 1415 | 1 639 469 258 48 Core . | . . . . . Treads 1415 | 1 639 469 258 48 Legs . | . . . . . Wheels . | . . . . . Hover . | . . . . . Flight . | . . . . . Fastest Speed 160 | 160 160 160 160 160 Average Speed 160 | 160 160 160 160 160 Slowest Speed 160 | 160 160 160 160 160 Overloaded Moves . | . . . . . Propulsion Burnouts . | . . . . . Robots Hopped . | . . . . . Cave-ins Triggered 1 | . . . . 1 Exploration Rate (%) 49 | 2 77 92 69 8 Regions Visited 4 Branch Regions 3 Pre-discovered Areas 2 | . 2 . . . Known Exits Taken . | . . . . . Unknown Exits Taken 4 | 1 1 1 1 . Scrap Searched 1 | . . 1 . . Spaces Dug 18 | . 18 . . . Terrain Destroyed 69 | . 43 . . 26 Melee . | . . . . . Projectile . | . . . . . AOE 69 | . 43 . . 26 Terrain Rammed 6 | . . . . 6 Walls Destroyed . | . . . . . Machines Disabled . | . . . . . Actions | -11 -10 -10 -10 -9 --------- Run | Scr Mat Min Exi Min Total 1815 | 6 823 501 257 228 Wait 213 | . 55 18 . 140 Move 1411 | . 638 468 257 48 Hop . | . . . . . Pick Up 22 | . 20 1 . 1 Fast Attach 3 | . 2 1 . . Attach 10 | 2 . 1 . 7 Detach . | . . . . . Swap 26 | . 23 2 . 1 Drop 28 | 4 15 4 . 5 Fire 93 | . 70 6 . 17 Melee . | . . . . . Ram 6 | . . . . 6 Kick . | . . . . . Crush 3 | . . . . 3 Escape Stasis . | . . . . . Rewire . | . . . . . Trap . | . . . . . Miscellaneous . | . . . . . Route ------- -11/Scrapyard -10/Materials (discovered 5 exits: [*Mat x3] / *Min x2) -10/Mines (discovered 3 exits: [*Mat x2] / *Exi) -10/Exiles -9/Mines History --------- Turn | Location | Event 5 | -11/Scrapyard | Discovered new exit (range 0) 5 | -11/Scrapyard | Entered Materials 229 | -10/Materials | Discovered new exit (range 4) 303 | -10/Materials | Build established: Mutant 319 | -10/Materials | Discovered new exit (range 16) 376 | -10/Materials | Repaired Broken Grenade Launcher 573 | -10/Materials | Discovered new exit (range 13) 779 | -10/Materials | Discovered new exit (range 7) 1105 | -10/Materials | Discovered new exit (range 15) 1342 | -10/Materials | Entered Mines 1766 | -10/Mines | Discovered new exit (range 10) 1832 | -10/Mines | Discovered new exit (range 7) 1979 | -10/Mines | Deemed a non-threat by the Exiles lab entrance 1979 | -10/Mines | Discovered new exit (range 5) 2045 | -10/Mines | Found the Drone Emporium 2051 | -10/Mines | Found Prototype Device 2051 | -10/Mines | Identified Thief Drone Bay 2134 | -10/Mines | Entered Exiles 2134 | -10/Exiles | Found Exiles lab abandoned 2531 | -10/Exiles | Discovered new exit (range 10) 2546 | -10/Exiles | Entered Mines 2558 | -9/Mines | Learned Materials garrison access intel 2575 | -9/Mines | Core integrity fell below 50% 2619 | -9/Mines | Lost 3 parts (1n2w) 2625 | -9/Mines | Assembled infested the area 2834 | -9/Mines | Crushed by falling debris 2834 | -9/Mines | Smashed by cave-in Last Messages --------------- 02706_ Destabilizing: Short circuit. 02709_ Rammed Wall. 02709_ Destabilizing: Core damaged (-12). 02709_ Destabilizing: System corrupted (+1). 02711_ Dropped Broken Particle Gun. 02712_ Dropped Broken Lgt. Treads. 02712_ Broken Lgt. Treads crushed and broken. 02712_ Dropped Broken Lgt. Angular Momentum Engine. 02712_ Broken Lgt. Angular Momentum Engine crushed and broken. 02713_ Dropped Broken Sml. Laser. 02713_ Broken Sml. Laser crushed and broken. 02716_ Rammed Earth. 02716_ Destabilizing: Core damaged (-5). 02716_ Destabilizing: System interference. 02716_ Sml. Laser temporarily disabled. 02798_ System corrupted: Energy discharge (-65). 02834_ The unstable cave ceiling collapses. 02834_ Crushed by falling debris. 02834_ Ion Engine destroyed. 02834_ System corrupted by crushing effect (+5). Map ----- +----------------------------------------------------+ | ??????????????????????????????????? | | ??????????????????????????????????? | | ??????????????????????????????????? | | ??????????????????????????????????? | | ??????????????????????????????????? | | ??????????????????????????????????? | | ??????????????????????????????????? | | ??????????????????????????????????? | | ??????????????????????????????????? | | ??????????????????????????????????? | | ??????????????????????????????????? | | ??????????????????????????????????? | | ??????????????????????????????????? | | ??????????????????????????????????? | | ??????????????????????????????????? | | ???????????####???????????????????? | | ??????????? ##??????????????????? | | ??????????? ???????????????????? | | ??????????? ???????????????????? | | ??????????? ???????????????????? | | ??????????? ????????????????????? | | ???????????# ????????????????????? | | ???????????# #????????????????????? | | ???####????# #????????????????????? | | ??## ##### ###??????????????????? | | ?## ##@# # #??????????????????? | | ?# ### # #####??????????????? | | ?# =%=%#### ##?????#???????? | | ?## *%##[# # ##??? #???????? | | ??## [##%%*% #### #???????? | | ???######!# ##### #???????? | | ????????# # #### #???????? | | ???????### ####??## ###???????? | | ??????## #?????## #?????????? | | ??????# #??????## ##?????????? | | ??????# ##???????# #??????????? | | ??????## ###????????# #??????????? | | ???????####??????????# #??????????? | | ?????????????????????# #??????????? | | ????????????????????? #??????????? | | ????????????????????? ??????????? | | ????????????????????? ??????????? | | ????????????????????? ??????????? | | ????????????????????? ##??????????? | | ????????????????????? ????????????? | | ????????????????????? ????????????? | | ????????????????????? ????????????? | | ????????????????????? ????????????? | | ????????????????????? ????????????? | | ????????????????????? ????????????? | +----------------------------------------------------+ Best States ------------- Heat Dissipation 39 Energy Generation 18 Energy Capacity 250 Matter Stores 450 Matter Capacity 450 Sight Range 16 Terrain Scan Density 10 Evasion (%) 40 Recoil Reduction 2 Item Schematics ----------------- Hcp. Storage Unit | -10/Materials | Hacked Robot Schematics ------------------ None Fabricated ------------ Nothing Alien Tech Used ----------------- None Achievements -------------- None Challenges ------------ None Game ------ Seed HardcellFrostNukerbomber Manual? 0 Play Time 00:14:31 Cumulative 500.9 hours Start 2021.11.21 @ 00:08:11 End 2021.11.21 @ 00:21:38 Sessions 1 Manual Loads 0 Difficulty Rogue Special Mode None Game No. 486 Rogue 486 Adventurer 0 Explorer 0 Win Type - Total 13 Types 9/0/3/1/0/0/0/0/0 Lore% 83 Gallery% 94 Achievement% 72 Wizard Run 0 Options --------- ASCII 0 Keyboard 0 Movement Mouse Keybinds 1 Fullscreen 2 Font 24/Smallcaps Map View 76x50 Tactical HUD 1 Map Filters NONE Filters NONE Steam 1 RUN: 41a60312-7a65-4c7a-8f02-eff2ad7db612